fUSD/lending_fUSD_20250812
["ID","MTS","AMOUNT","RATE_DAILY","PERIOD"]
[378800054,1755022232136,-1000.0,0.00030391,2]
[378800055,1755022232147,-167.99,0.00030521,2]
[378800056,1755022232156,-167.99,0.00030674,2]
[378800057,1755022232165,-1220.58944243,0.00030751,30]
[378800058,1755022232216,-685.80362752,0.00030751,30]
[378800059,1755022232228,-90.49693005,0.00030751,30]
[378800060,1755022232237,-167.99,0.00030826,2]
[378800061,1755022232247,-151.0,0.0003089,2]
[378800062,1755022232257,-344.20280806,0.00030899,2]
[378800063,1755022232268,-500.0,0.000309,11]
[378800064,1755022232278,-3832.00237559,0.000309,2]
[378800065,1755022232287,-6263.03643693,0.000309,2]
[378800066,1755022232296,-151.0,0.00030971,2]
[378800067,1755022232305,-151.0,0.00030971,2]
[378800068,1755022232315,-151.0,0.00030971,2]
[378800069,1755022232324,-151.0,0.00030971,2]
[378800070,1755022232333,-151.0,0.00030971,2]
[378800071,1755022232343,-151.0,0.00030971,2]
[378800072,1755022232352,-151.0,0.00030971,2]
[378800073,1755022232361,-151.0,0.00030971,2]
[378800074,1755022232371,-169.65297272,0.00030971,2]
[378800075,1755022232380,-500.0,0.00030971,2]
[378800076,1755022232391,-502.25687419,0.00030971,2]
[378800077,1755022232401,-500.76720022,0.00030973,5]
[378800078,1755022232411,-500.81181808,0.00030973,5]
[378800079,1755022232424,-319.27362652,0.00030973,5]
[378800080,1755022232433,-500.0,0.00030973,5]
[378800081,1755022232443,-500.0,0.00030973,5]
[378800082,1755022232452,-500.0,0.00030973,5]
[378800083,1755022232461,-500.0,0.00030973,5]
[378800084,1755022232471,-500.0,0.00030973,5]
[378800085,1755022232480,-500.0,0.00030973,5]
[378800087,1755022232490,-502.24454179,0.00030973,5]
[378800089,1755022232500,-500.0,0.00030973,5]
[378800091,1755022232510,-500.0,0.00030973,5]
[378800093,1755022232519,-500.0,0.00030973,5]
[378800095,1755022232528,-531.7715648,0.00030973,5]
[378800097,1755022232538,-971.044,0.00030973,27]
[378800100,1755022232547,-180.309,0.00030973,27]
[378800103,1755022232556,-287.69,0.0003098,2]
[378800106,1755022232567,-166.36781732,0.00030989,2]
[378800109,1755022232576,-3606.23759662,0.0003099,2]
[378800112,1755022232586,-11171.47249544,0.0003099,2]
[378800115,1755022232598,-43398.46820349,0.0003099,2]
[378800118,1755022232613,-2723.35762163,0.0003099,2]
[378800121,1755022232633,-1216.00988901,0.0003099,2]
[378800123,1755022232649,-2671.52418638,0.0003099,2]
[378800125,1755022232660,-2674.26676576,0.0003099,2]
[378800127,1755022232672,-1650.0,0.0003099,2]
[378800128,1755022232683,-5130.31646384,0.0003099,2]
[378800129,1755022232702,-4739.23668544,0.0003099,2]
[378800130,1755022232713,-26456.59769915,0.0003099,2]
[378800131,1755022232724,-108756.74789347,0.0003099,2]
[378800132,1755022232735,-330.96251546,0.0003099,2]
[378800133,1755022232746,-764.62155094,0.0003099,2]
[378800134,1755022232773,-10653.36768027,0.0003099,2]
[378800136,1755022232785,-1640.28496572,0.0003099,2]
[378800137,1755022232795,-87423.4798853,0.0003099,2]
[378800138,1755022232805,-685.9,0.00030999,5]
[378800139,1755022232814,-36392.15649076,0.00031,30]
[378800140,1755022232826,-21392.20588974,0.00031,30]
[378800142,1755022232838,-14777.14821988,0.00031,30]
[378800143,1755022232849,-357.11501195,0.00031,30]
[378800156,1755022238147,-254.29958279,0.0003099,2]
[378800157,1755022238157,-1796.62603241,0.00031,30]
[378800158,1755022238252,-12056.13101383,0.00031,30]
[378800166,1755022239996,-1104.80047542,0.00031,30]
[378800167,1755022240008,-309.05605,0.00031,30]
[378800168,1755022240019,-327.0836,0.00031,30]
[378800169,1755022240030,-452.09150918,0.00031,30]
[378800170,1755022240054,-1398.40820495,0.00031,30]
[378800171,1755022240066,-11040.58237661,0.00031,30]
[378800172,1755022240109,-954.06344328,0.00031,30]
[378800173,1755022240122,-25029.85064974,0.00031,30]
[378800174,1755022240134,-2793.71786816,0.00031,30]
[378800175,1755022240215,-6149.95401296,0.00031,30]
[378800176,1755022240226,-13371.68339778,0.00031,30]
[378800177,1755022240237,-4405.77138875,0.00031,30]
[378800178,1755022240584,-3430.27801453,0.00031,30]
[378800179,1755022240638,-665.23,0.00031,30]
[378800188,1755022243041,-8928.54769937,0.00031,30]
[378800189,1755022243095,-1121.40671461,0.00031,30]
[378800190,1755022243106,-461.412428,0.00031,30]
[378800191,1755022243118,-1238.60015452,0.00031,30]
[378800192,1755022243153,-952.04447236,0.00031,30]
[378800194,1755022243359,-4686.32964663,0.00031,30]
[378800209,1755022246196,-4689.15163687,0.00031,30]
[378800976,1755022778389,185.21,0.00013699,2]
[378800985,1755022804025,2500.0,0.00027099,120]
[378801068,1755022893411,10000.0,0.00037508,30]
[378801105,1755023108664,4129.58,0.00019,2]
[378801106,1755023114278,986.29527702,0.00022,30]
[378801113,1755023127720,790.01682134,0.000299,120]
[378801114,1755023134998,5915.24543422,0.00024,120]
[378801117,1755023153493,863.35386917,0.0003013,120]
[378801157,1755023167264,1091.98792507,0.0003,120]
[378801178,1755023174872,1800.0,0.0003013,120]
[378801333,1755023247869,500.0,0.000189,6]
[378801376,1755023260443,37413.68040936,0.00018,2]
[378801422,1755023287840,3247.93482346,0.00037516,120]
[378801448,1755023306804,1261.44635668,0.00021646,15]
[378801449,1755023310940,7001.3308446,0.00037516,75]
[378801453,1755023316676,506.43024478,0.000246,120]
[378801454,1755023317052,725.33787762,0.0003,120]
[378801455,1755023317666,661.13719091,0.0003013,120]
[378801466,1755023321486,2159.027805,0.0003,120]
[378801469,1755023326502,2320.92994854,0.00030136,120]
[378801539,1755023408544,335.661452,7.945e-05,2]
[378801549,1755023432417,-300.0,0.00017999,2]
[378801550,1755023432427,-1200.0,0.00017999,2]
[378801551,1755023432436,-200.0,0.00017999,2]
[378801553,1755023432445,-192.91058419,0.00017999,2]
[378801555,1755023432456,-10142.27409763,0.00018,2]
[378801557,1755023432468,-4158.534208,0.00018,2]
[378801560,1755023432480,-359.27061638,0.00018,2]
[378801562,1755023432497,-15999.98786797,0.00018,2]
[378801566,1755023432524,-20211.55466249,0.00018,2]
[378801567,1755023432533,-334.16596801,0.000189,2]
[378801569,1755023432542,-1573.03118343,0.000189,2]
[378801571,1755023432554,-4188.44908625,0.000189,2]
[378801573,1755023432563,-500.0,0.00018973,2]
[378801575,1755023432572,-500.0,0.00018973,2]
[378801577,1755023432581,-500.0,0.00018973,2]
[378801578,1755023432590,-18675.08514024,0.00019,2]
[378801579,1755023432631,-128898.41222209,0.00019,2]
[378801580,1755023432640,-3890.34883399,0.00019,2]
[378801582,1755023432650,-665234.86194666,0.00019,2]
[378801584,1755023432659,-440334.05493567,0.00019,2]
[378801585,1755023432674,-1423.72140732,0.00019,2]
[378801615,1755023437968,59094.036714,0.00037529,30]
[378801622,1755023438067,-64407.25933812,0.00019,2]
[378801624,1755023438228,-2515.538259,0.00019,2]
[378801625,1755023438336,-981.56999247,0.00019,2]
[378801757,1755023440158,-3626.26239736,0.00019,2]
[378801774,1755023440321,-32588.46014041,0.00019,2]
[378801776,1755023440332,-28290.0,0.00019,2]
[378801778,1755023440344,-19500.0,0.00019,2]
[378801780,1755023440355,-1886.65,0.00019,2]
[378801782,1755023440366,-433.80769966,0.00019,2]
[378801784,1755023440379,-1697.42282268,0.00019,2]
[378801818,1755023440712,-564.188,0.00019,2]
[378802088,1755023443264,-1344.29,0.00019,2]
[378802131,1755023443743,-2681.21438917,0.00019,2]
[378802132,1755023443753,-284.25,0.00019,2]
[378802133,1755023443762,-164.43,0.00019,2]
[378802134,1755023443771,-420.0,0.00019639,2]
[378802135,1755023443781,-1200.0,0.00019735,2]
[378802136,1755023443790,-5761.48026965,0.00020489,2]
[378802138,1755023443799,-180.0,0.00021428,2]
[378802140,1755023443808,-5761.48026965,0.00022078,2]
[378802142,1755023443817,-334.16596795,0.0002242,2]
[378802144,1755023443827,-1000.40535454,0.00023,5]
[378802146,1755023443835,-5761.48026965,0.00023667,2]
[378802148,1755023443845,-3940.91736055,0.00024535,2]
[378802150,1755023443854,-229.36,0.00024635,2]
[378802152,1755023443863,-2000.0,0.00024658,15]
[378802154,1755023443872,-298595.268799,0.000248,3]
[378802156,1755023443882,-162.52938175,0.000248,30]
[378802158,1755023443892,-457.93703655,0.000248,3]
[378802160,1755023443901,-150.0,0.00024899,2]
[378802163,1755023443910,-213088.01262022,0.000249,3]
[378802407,1755023446231,-1635.74664,0.000249,3]
[378802499,1755023447145,-6485.8996,0.000249,3]
[378802500,1755023447157,-262.6,0.000249,3]
[378802506,1755023447307,-1889.84554974,0.000249,3]
[378802508,1755023447319,-876.14428893,0.000249,3]
[378802514,1755023447364,-1556.90209811,0.000249,3]
[378802521,1755023447427,-13468.39394781,0.000249,3]
[378802687,1755023450790,165.11,0.00028919,120]
[378802697,1755023458899,-70000.0,0.000249,3]
[378802801,1755023586026,191.26272692,0.00037529,120]
[378803227,1755024004494,1000.0,0.0002087,3]
[378803834,1755024632449,-256.16541537,0.00018999,2]
[378803835,1755024632458,-151.0,0.00020761,2]
[378803836,1755024632468,-500.0,0.00020772,2]
[378803837,1755024632477,-92.83458463,0.00020772,2]
[378803838,1755024632490,-71.12768392,0.00020772,2]
[378803839,1755024632499,-1200.0,0.00020772,2]
[378803840,1755024632509,-199.0,0.00020772,2]
[378803841,1755024632518,-500.0,0.00020773,2]
[378803842,1755024632528,-500.0,0.00020773,2]
[378803843,1755024632538,-500.0,0.00020773,2]
[378803844,1755024632547,-500.0,0.00020773,2]
[378803845,1755024632557,-500.0,0.00020773,2]
[378803846,1755024632567,-500.0,0.00020773,2]
[378803847,1755024632576,-19773.03276192,0.00020773,2]
[378803848,1755024632599,-2000.0,0.00020773,2]
[378803849,1755024632610,-19415.18553678,0.00020773,2]
[378803850,1755024632620,-4157.0564062,0.00020773,2]
[378803851,1755024632630,-4468.88287551,0.00020773,2]
[378803852,1755024632641,-30993.52870249,0.00020773,2]
[378803853,1755024632650,-528.08016222,0.00020869,2]
[378803854,1755024632660,-6187.00992652,0.00021654,2]
[378803855,1755024632676,-621.17768747,0.00021654,2]
[378803856,1755024632687,-8764.57829993,0.00021654,2]
[378803857,1755024632701,-2372.01,0.00021654,2]
[378803858,1755024632713,-11968.99999999,0.00021654,2]
[378803859,1755024632736,-2053.09389758,0.00021654,2]
[378803870,1755024638254,-1948.0499796,0.00021654,2]
[378803871,1755024638266,-1157.22570789,0.00021654,2]
[378803872,1755024638365,-6116.07279972,0.00021654,2]
[378803873,1755024638376,-500.75904934,0.00021811,2]
[378803874,1755024638387,-927.5646616,0.00022531,2]
[378803875,1755024638399,-41188.2182987,0.00022536,2]
[378803876,1755024638409,-161.8,0.00022583,2]
[378803877,1755024638420,-14586.25743314,0.00022625,2]
[378803878,1755024638429,-7912.7335746,0.00022685,2]
[378803879,1755024638440,-1680.0,0.00022708,2]
[378803880,1755024638453,-206.9676515,0.00022923,2]
[378803881,1755024638463,-1765.5695097,0.00023112,2]
[378803882,1755024638473,-41188.2182987,0.00023417,2]
[378803883,1755024638483,-250.0,0.0002453,2]
[378803884,1755024638493,-2000.0,0.00024658,15]
[378803885,1755024638503,-720.0,0.00024824,2]
[378803886,1755024638514,-173.46641,0.00024899,2]
[378803887,1755024638524,-267.40247414,0.00025,60]
[378804040,1755024640353,-68.38737212,0.00025,60]
[378804043,1755024640372,-333.31655921,0.00025,60]
[378804057,1755024640490,-299.2201319,0.00025,60]
[378804067,1755024640566,-466.07780003,0.00025,60]
[378804074,1755024640628,-462.52421944,0.00025,60]
[378804076,1755024640644,-1131.97357925,0.000251,30]
[378804079,1755024640656,-1000.0,0.00025606,2]
[378804082,1755024640677,-195.93,0.00025637,2]
[378804084,1755024640691,-734.83245179,0.00025762,2]
[378804250,1755024643496,-1270.74,0.00025762,2]
[378804251,1755024643508,-122.81754821,0.00025762,2]
[378804252,1755024643519,-178.89,0.00025772,2]
[378804253,1755024643528,-1830.48,0.00025993,30]
[378804254,1755024643538,-500.0,0.00026281,2]
[378804255,1755024643548,-546.66,0.00026539,2]
[378804256,1755024643558,-195.93,0.00026599,2]
[378804257,1755024643567,-156.37,0.00026679,2]
[378804258,1755024643577,-170.22,0.00026706,2]
[378804259,1755024643587,-156.37,0.00026946,2]
[378804260,1755024643597,-712.94081357,0.0002703,2]
[378804261,1755024643607,-178.89,0.0002706,2]
[378804262,1755024643617,-170.0,0.00027126,7]
[378804263,1755024643626,-2942.14,0.0002739,2]
[378804264,1755024643636,-600.0,0.00027397,80]
[378804265,1755024643646,-156.0360214,0.000274,2]
[378804266,1755024643658,-156.0360214,0.000274,2]
[378804267,1755024643668,-156.0360214,0.000274,2]
[378804268,1755024643677,-156.0360214,0.000274,2]
[378804269,1755024643687,-156.0360214,0.000274,2]
[378804270,1755024643696,-156.0360214,0.000274,2]
[378804271,1755024643707,-156.0360214,0.000274,2]
[378804272,1755024643717,-156.0360214,0.000274,2]
[378804273,1755024643726,-156.0360214,0.000274,2]
[378804274,1755024643736,-332.94,0.00027422,2]
[378804275,1755024643746,-1165.5,0.0002744,2]
[378804276,1755024643759,-195.93,0.0002756,2]
[378804277,1755024643768,-666.0,0.00027976,3]
[378804278,1755024643778,-504.59,0.00028014,2]
[378804279,1755024643787,-291.54153625,0.00028314,2]
[378804280,1755024643796,-150.0,0.00028314,2]
[378804281,1755024643805,-150.0,0.00028314,2]
[378804282,1755024643814,-150.0,0.00028314,2]
[378804283,1755024643823,-500.0,0.00028314,2]
[378804284,1755024643835,-500.0,0.00028314,2]
[378804285,1755024643845,-150.0,0.00028314,2]
[378804286,1755024643854,-500.0,0.00028314,2]
[378804287,1755024643864,-500.0,0.00028314,2]
[378804288,1755024643874,-150.0,0.00028314,2]
[378804289,1755024643884,-500.0,0.00028314,2]
[378804290,1755024643893,-500.0,0.00028314,2]
[378804291,1755024643903,-178.89,0.00028349,2]
[378804292,1755024643912,-195.93,0.00028522,2]
[378804293,1755024643921,-173.34490943,0.00028588,2]
[378804294,1755024643931,-224.37526121,0.00028588,2]
[378804295,1755024643940,-500.0,0.00028588,2]
[378804296,1755024643952,-500.0,0.00028588,2]
[378804297,1755024643963,-150.0,0.00028588,2]
[378804298,1755024643972,-500.0,0.00028588,2]
[378804299,1755024643981,-500.0,0.00028588,2]
[378804300,1755024643990,-500.0,0.00028588,2]
[378804301,1755024644000,-541.87420058,0.00028588,2]
[378804302,1755024644009,-500.0,0.00028745,5]
[378804303,1755024644020,-500.0,0.00028745,5]
[378804305,1755024644030,-504.11969256,0.0002875,5]
[378804306,1755024644040,-155.03,0.00028794,2]
[378804307,1755024644049,-1000.0,0.00028807,2]
[378804308,1755024644059,-500.0,0.00028862,2]
[378804309,1755024644069,-500.0,0.00028862,2]
[378804310,1755024644079,-213.7586928,0.00028862,2]
[378804312,1755024644088,-364.45489699,0.00028862,2]
[378804313,1755024644097,-432.08276904,0.00028862,2]
[378804314,1755024644107,-500.0,0.00028862,2]
[378804315,1755024644119,-273.0,0.00029131,2]
[378804316,1755024644128,-225.9541382,0.00029131,2]
[378804317,1755024644137,-150.0,0.00029131,2]
[378804318,1755024644146,-250.70703226,0.00029131,2]
[378804319,1755024644155,-150.0,0.00029131,2]
[378804320,1755024644165,-150.0,0.00029131,2]
[378804321,1755024644174,-150.0,0.00029131,2]
[378804322,1755024644183,-500.0,0.00029131,2]
[378804323,1755024644192,-150.0,0.00029131,2]
[378804324,1755024644201,-500.0,0.00029131,2]
[378804325,1755024644212,-150.80529416,0.00029131,2]
[378804326,1755024644222,-150.0,0.00029131,2]
[378804327,1755024644232,-150.0,0.00029131,2]
[378804328,1755024644243,-260.79988993,0.00029132,2]
[378804329,1755024644252,-150.0,0.00029136,2]
[378804330,1755024644262,-500.0,0.00029136,2]
[378804331,1755024644272,-166.16275662,0.00029405,2]
[378804332,1755024644281,-203.82032393,0.00029405,2]
[378804333,1755024644290,-291.74312721,0.00029405,2]
[378804334,1755024644299,-210.78498265,0.00029405,2]
[378804335,1755024644309,-500.0,0.00029405,2]
[378804336,1755024644318,-150.0,0.00029405,2]
[378804337,1755024644328,-500.0,0.00029405,2]
[378804338,1755024644338,-158.5445144,0.00029405,2]
[378804339,1755024644346,-150.0,0.00029405,2]
[378804340,1755024644355,-500.0,0.0002941,2]
[378804341,1755024644365,-195.93,0.00029483,2]
[378804342,1755024644374,-178.89,0.00029637,2]
[378804343,1755024644383,-500.0,0.00029679,2]
[378804344,1755024644392,-150.0,0.00029679,2]
[378804345,1755024644401,-500.0,0.00029679,2]
[378804346,1755024644411,-201.87671792,0.00029679,2]
[378804347,1755024644419,-283.0,0.00029684,2]
[378804348,1755024644428,-1022.81606194,0.00029736,2]
[378804349,1755024644437,-500.0,0.00029953,2]
[378804350,1755024644446,-288.71091365,0.00029953,2]
[378804351,1755024644457,-200.0,0.00029953,2]
[378804352,1755024644467,-3385.16177253,0.0003,2]
[378804353,1755024644476,-150.0,0.0003,5]
[378804354,1755024644486,-3773.09230743,0.0003003,2]
[378804355,1755024644496,-1162.7669,0.0003011,10]
[378804356,1755024644505,-11992.1739659,0.0003012,3]
[378804357,1755024644515,-457.93703655,0.0003012,3]
[378804358,1755024644524,-33676.69046757,0.0003013,60]
[378804359,1755024644534,-395.6656621,0.0003013,2]
[378804360,1755024644543,-500.0,0.00030227,2]
[378804361,1755024644553,-167.01,0.00030251,2]
[378804362,1755024644563,-657.32,0.0003041,5]
[378804363,1755024644573,-11992.1739659,0.00030473,3]
[378804364,1755024644582,-500.0,0.00030501,2]
[378804365,1755024644592,-500.0,0.000306,11]
[378804366,1755024644602,-1000.0,0.000307,11]
[378804367,1755024644612,-278.48635689,0.000307,3]
[378804368,1755024644623,-949.768,0.00030751,27]
[378804369,1755024644632,-500.0,0.00030775,2]
[378804370,1755024644641,-250.0,0.000308,30]
[378804371,1755024644651,-1500.0,0.000308,11]
[378804372,1755024644660,-600.0,0.00030845,80]
[378804373,1755024644670,-208.21227685,0.000309,2]
[378804374,1755024644679,-2000.0,0.000309,11]
[378804375,1755024644690,-4187.9158,0.000309,2]
[378804376,1755024644700,-178.89,0.00030926,2]
[378804377,1755024644711,-657.32,0.00030958,6]
[378804378,1755024644720,-11992.1739659,0.0003096,3]
[378804379,1755024644729,-11992.1739659,0.00030969,3]
[378804380,1755024644738,-2128.39,0.00030969,2]
[378804381,1755024644748,-3338.03780453,0.0003097,3]
[378804382,1755024644895,-64119.81042156,0.0003097,3]
[378804383,1755024644909,-16487.36953531,0.0003097,3]
[378804384,1755024644919,-500.0,0.00030973,5]
[378804385,1755024644928,-39600.29006074,0.0003098,3]
[378804386,1755024644959,-3261.66903561,0.0003098,3]
[378804394,1755024646463,-353.00684934,0.0003,30]
[378804395,1755024646475,-331.6292,0.0003,30]
[378804396,1755024646617,-300.0,0.0003,30]
[378804397,1755024646672,-1141.55395066,0.0003,30]
[378804398,1755024646682,-755.97615017,0.0003098,3]
[378804399,1755024646727,-4350.76061718,0.0003098,3]
[378804400,1755024646736,-29840.43103335,0.0003098,3]
[378804444,1755024835096,250.0,0.00015,2]
[378804445,1755024845094,1255.3,0.00029966,120]
[378804446,1755025062567,236.79,0.00013699,2]
[378804460,1755025396819,1466.36493989,0.00037508,120]
[378804461,1755025399911,844.3490555,0.00037508,120]
[378804469,1755025598099,-156.0,0.0002337,10]
[378804470,1755025598120,-17.34485253,0.00024635,2]
[378804482,1755025781432,178.96,0.00029592,120]
[378804485,1755025793573,506.0860307,0.00037516,35]
[378804490,1755025831533,-426.06973445,0.00024657,2]
[378804491,1755025831544,-461.93026555,0.00024657,2]
[378804492,1755025831590,-312.0,0.00024657,2]
[378804493,1755025831600,-500.0,0.00024658,15]
[378804494,1755025831610,-500.0,0.00024658,15]
[378804495,1755025831619,-2000.0,0.00024658,15]
[378804496,1755025831629,-500.0,0.00024658,15]
[378804497,1755025831638,-500.0,0.00024932,2]
[378804498,1755025831647,-178.01763104,0.00026842,2]
[378804499,1755025831659,-301.31999383,0.00026842,2]
[378804500,1755025831674,-1200.66237513,0.00026842,2]
[378804501,1755025831683,-156.0360214,0.000274,2]
[378804502,1755025831693,-156.0360214,0.000274,2]
[378804503,1755025831703,-156.0360214,0.000274,2]
[378804504,1755025831712,-600.0,0.00028367,2]
[378804505,1755025831721,-2351.0,0.00029221,2]
[378804506,1755025831731,-153.6,0.00029494,2]
[378804507,1755025831740,-1000.0,0.00029565,2]
[378804508,1755025831750,-171.85,0.00029596,2]
[378804509,1755025831759,-151.0,0.00029681,2]
[378804510,1755025831768,-248.71531821,0.00029681,2]
[378804511,1755025831777,-170.0,0.00029724,7]
[378804512,1755025831787,-1677.94,0.00029751,30]
[378804513,1755025831796,-360.0,0.0002987,80]
[378804514,1755025831805,-350.33,0.00029893,2]
[378804515,1755025831814,-167.01,0.00029914,2]
[378804516,1755025831823,-1000.0,0.0003,2]
[378804517,1755025831833,-529.56707106,0.00030137,2]
[378804518,1755025831843,-666.0,0.00030161,3]
[378804519,1755025831852,-1000.0,0.000305,3]
[378804520,1755025831861,-200.0,0.000306,11]
[378804521,1755025831870,-173.46641,0.0003066,2]
[378804522,1755025831880,-292.47535917,0.0003068,2]
[378804523,1755025831889,-500.0,0.000307,11]
[378804524,1755025831898,-200.0,0.00030721,2]
[378804525,1755025831907,-800.0,0.000308,11]
[378804526,1755025831917,-3395.78307666,0.0003088,2]
[378804527,1755025831926,-759.815,0.0003089,27]
[378804528,1755025831936,-282.75793842,0.00030899,15]
[378804529,1755025831946,-5329.52033777,0.00030899,2]
[378804530,1755025831955,-1000.0,0.000309,11]
[378804531,1755025831964,-178.46766588,0.000309,2]
[378804532,1755025831974,-151.0,0.00030969,2]
[378804533,1755025831984,-309.10269598,0.0003097,2]
[378804534,1755025831993,-500.0,0.0003097,2]
[378804535,1755025832002,-339.85419907,0.0003097,2]
[378804536,1755025832011,-340.01805347,0.0003097,2]
[378804537,1755025832020,-3475.94029668,0.0003097,2]
[378804538,1755025832029,-455.86758873,0.00030971,2]
[378804539,1755025832039,-714.42139927,0.00030971,2]
[378804540,1755025832048,-151.0,0.00030971,2]
[378804541,1755025832057,-1000.0,0.00030971,2]
[378804542,1755025832067,-151.0,0.00030971,2]
[378804543,1755025832076,-500.0,0.00030971,2]
[378804544,1755025832089,-600.0,0.00030971,2]
[378804545,1755025832098,-304.0,0.00030971,2]
[378804546,1755025832107,-250.0,0.00030971,2]
[378804547,1755025832116,-173.90267423,0.00030971,2]
[378804548,1755025832125,-340.0,0.00030971,2]
[378804549,1755025832147,-500.0,0.00030971,2]
[378804550,1755025832162,-1000.0,0.00030971,2]
[378804551,1755025832181,-512.74253208,0.00030971,2]
[378804552,1755025832201,-500.0,0.00030971,2]
[378804553,1755025832216,-500.0,0.00030971,2]
[378804554,1755025832235,-500.0,0.00030971,2]
[378804555,1755025832254,-309.98419327,0.00030971,2]
[378804556,1755025832273,-579.59505164,0.00030971,2]
[378804557,1755025832290,-200.0,0.0003098,2]
[378804558,1755025832311,-267.22978364,0.0003098,3]
[378804559,1755025832372,-3199.32670054,0.0003098,3]
[378804560,1755025832394,-21785.05544224,0.0003098,3]
[378804561,1755025832411,-36386.04060124,0.0003098,3]
[378804562,1755025832433,-1705.62559419,0.0003098,3]
[378804563,1755025832453,-1694.05595021,0.0003098,3]
[378804564,1755025832471,-1239.01972034,0.0003098,3]
[378804565,1755025832490,-788.20583031,0.0003098,3]
[378804567,1755025836422,-156.0360214,0.00027669,2]
[378804568,1755025836431,-387.85371844,0.0003089,2]
[378804569,1755025836441,-151.0,0.0003098,2]
[378804570,1755025836450,-3637.20089543,0.0003098,3]
[378804573,1755025837685,-1200.0,0.0003098,3]
[378804574,1755025837700,-16162.02993236,0.0003098,3]
[378804575,1755025837711,-211.77135896,0.0003098,3]
[378804576,1755025837721,-457.93703655,0.0003098,3]
[378804577,1755025837730,-150.0,0.00030981,2]
[378804578,1755025837739,-150.0,0.00030981,2]
[378804579,1755025837750,-150.0,0.00030981,2]
[378804580,1755025837759,-150.0,0.00030981,2]
[378804581,1755025837769,-150.0,0.00030981,2]
[378804582,1755025837779,-150.0,0.00030981,2]
[378804583,1755025837788,-150.0,0.00030981,2]
[378804584,1755025837798,-200.0,0.00030981,2]
[378804585,1755025837809,-150.0,0.00030981,2]
[378804586,1755025837818,-150.0,0.00030981,2]
[378804587,1755025837828,-150.0,0.00030981,2]
[378804588,1755025837837,-52.05913819,0.00030981,2]
[378804590,1755025837849,-97.94086181,0.00030981,2]
[378804592,1755025837859,-2720.30452855,0.00030989,120]
[378804594,1755025837870,-602.55,0.00030989,5]
[378804596,1755025837879,-198143.528514,0.0003099,3]
[378804598,1755025837889,-300.0,0.00030999,10]
[378804600,1755025837898,-435.89842496,0.00030999,10]
[378804602,1755025837908,-300.0,0.00030999,10]
[378804605,1755025837918,-228.76,0.00030999,2]
[378804609,1755025837928,-300.0,0.00030999,10]
[378804613,1755025837937,-150.0,0.00030999,2]
[378804617,1755025837948,-150.0,0.00030999,2]
[378804620,1755025837957,-39575.98710968,0.00031,2]
[378804786,1755025840141,-426.0,0.000307,2]
[378804787,1755025840150,-843.0035059,0.0003098,3]
[378804788,1755025840160,-4795.72378108,0.00031,2]
[378804789,1755025840297,-1255.07221535,0.00031,2]
[378804790,1755025840308,-800.0,0.00031,2]
[378804791,1755025840319,-5965.0,0.00031,2]
[378804792,1755025840345,-1535.07693399,0.00031,2]
[378804793,1755025842781,-2490.84457509,0.00031,2]
[378804794,1755025842835,-888.0,0.00031,2]
[378804795,1755025842891,-29427.24548013,0.00031,2]
[378804796,1755025842943,-1317.11145661,0.00031,2]
[378804819,1755025845518,-156.0360214,0.00028706,2]
[378804821,1755025845528,-11802.36155533,0.00031,2]
[378804823,1755025845539,-1149.24274177,0.00031,2]
[378804825,1755025845548,-1945.17441699,0.00031,2]
[378804827,1755025845558,-6245.53293036,0.00031,30]